fUST/lending_fUST_20250210
["ID","MTS","AMOUNT","RATE_DAILY","PERIOD"]
[352577292,1739176246102,-642.43,0.00012054,2]
[352577293,1739176246112,-500.0,0.00012054,2]
[352577294,1739176246123,-500.0,0.00012054,2]
[352577295,1739176246132,-1441.94,0.00012054,2]
[352577296,1739176246142,-1123.55,0.00012054,2]
[352577297,1739176246153,-7773.71,0.00012054,2]
[352577298,1739176246164,-500.0,0.00012054,2]
[352577299,1739176246174,-500.0,0.00012054,2]
[352577300,1739176246185,-758.06,0.00012054,2]
[352577301,1739176246194,-1593.69,0.00012054,2]
[352577302,1739176246205,-500.0,0.00012054,2]
[352577303,1739176246215,-846.15,0.00012054,2]
[352577304,1739176246224,-500.0,0.00012054,2]
[352577305,1739176246236,-1596.76,0.00012054,2]
[352577306,1739176246246,-2715.66,0.00012054,2]
[352577307,1739176246256,-528.49169087,0.00012057,2]
[352577308,1739176246266,-500.0,0.00012057,2]
[352577309,1739176246276,-1000.0,0.00012057,2]
[352577310,1739176246286,-183.0,0.00012099,2]
[352577311,1739176246296,-1000.0,0.0001211,2]
[352577312,1739176246306,-500.0,0.00012143,2]
[352577313,1739176246317,-500.0,0.00012143,2]
[352577314,1739176246326,-274.94525434,0.00012148,2]
[352577315,1739176246336,-500.0,0.00012148,2]
[352577316,1739176246347,-500.0,0.00012148,2]
[352577317,1739176246356,-500.0,0.00012148,2]
[352577318,1739176246366,-500.0,0.00012148,2]
[352577319,1739176246376,-503.21350288,0.00012181,2]
[352577320,1739176246386,-504.91411847,0.00012181,2]
[352577321,1739176246397,-4469.72256825,0.00012191,5]
[352577322,1739176246407,-500.0,0.00012191,2]
[352577323,1739176246416,-500.0,0.00012191,2]
[352577324,1739176246426,-500.0,0.00012191,2]
[352577325,1739176246435,-524.71,0.00012191,2]
[352577326,1739176246445,-500.0,0.00012191,2]
[352577328,1739176246455,-574.97,0.00012191,2]
[352577330,1739176246464,-500.96943482,0.00012191,2]
[352577332,1739176246474,-500.0,0.00012191,2]
[352577333,1739176246483,-500.0,0.00012191,2]
[352577334,1739176246493,-844.45,0.00012191,2]
[352577336,1739176246503,-500.0,0.00012191,2]
[352577338,1739176246513,-500.0,0.00012191,2]
[352577340,1739176246523,-196.64190154,0.00012191,2]
[352577341,1739176246532,-413.93567255,0.00012191,2]
[352577342,1739176246541,-3425.53,0.00012191,2]
[352577343,1739176246551,-500.0,0.00012191,2]
[352577344,1739176246561,-1859.98,0.00012191,2]
[352577345,1739176246570,-500.0,0.00012191,2]
[352577346,1739176246580,-522.25,0.00012191,2]
[352577347,1739176246590,-556.59,0.00012191,2]
[352577348,1739176246600,-500.0,0.00012191,2]
[352577349,1739176246611,-500.0,0.00012191,2]
[352577350,1739176246621,-1011.61,0.00012191,2]
[352577351,1739176246632,-18089.75,0.00012191,2]
[352577352,1739176246643,-500.0,0.00012191,2]
[352577353,1739176246654,-647.77,0.00012191,2]
[352577354,1739176246664,-801.62,0.00012191,2]
[352577355,1739176246674,-1371.26,0.00012191,2]
[352577356,1739176246684,-500.0,0.00012191,2]
[352577357,1739176246694,-3891.79,0.00012191,2]
[352577358,1739176246704,-500.0,0.00012191,2]
[352577359,1739176246714,-500.0,0.00012191,2]
[352577360,1739176246723,-596.73,0.00012191,2]
[352577361,1739176246733,-1383.93,0.00012191,2]
[352577362,1739176246743,-679.91,0.00012191,2]
[352577363,1739176246755,-564.98,0.00012191,2]
[352577364,1739176246764,-500.0,0.00012191,2]
[352577365,1739176246773,-646.42,0.00012191,2]
[352577366,1739176246783,-1228.06,0.00012191,2]
[352577367,1739176246793,-477.84,0.00012191,2]
[352577368,1739176246803,-500.0,0.00012191,2]
[352577369,1739176246812,-578.5,0.00012191,2]
[352577370,1739176246821,-642.43,0.00012191,2]
[352577371,1739176246831,-500.0,0.00012191,2]
[352577372,1739176246841,-203.28813587,0.00012191,2]
[352577373,1739176246850,-1441.94,0.00012191,2]
[352577374,1739176246860,-1123.55,0.00012191,2]
[352577375,1739176246869,-7773.71,0.00012191,2]
[352577376,1739176246880,-500.0,0.00012191,2]
[352577377,1739176246889,-295.2,0.00012191,2]
[352577378,1739176246899,-758.06,0.00012191,2]
[352577379,1739176246908,-1593.69,0.00012191,2]
[352577380,1739176246918,-500.0,0.00012191,2]
[352577381,1739176246927,-846.15,0.00012191,2]
[352577382,1739176246937,-500.0,0.00012191,2]
[352577383,1739176246947,-1596.76,0.00012191,2]
[352577384,1739176246957,-2715.66,0.00012191,2]
[352577385,1739176246966,-236.56142917,0.00012271,2]
[352577386,1739176246976,-500.0,0.00012295,2]
[352577387,1739176246985,-5077.16345964,0.00012328,5]
[352577388,1739176246994,-577.01,0.00012328,2]
[352577389,1739176247004,-500.0,0.00012328,2]
[352577390,1739176247013,-500.0,0.00012328,2]
[352577391,1739176247023,-524.71,0.00012328,2]
[352577392,1739176247033,-500.0,0.00012328,2]
[352577393,1739176247043,-500.0,0.00012328,2]
[352577394,1739176247053,-576.35,0.00012328,2]
[352577395,1739176247063,-844.45,0.00012328,2]
[352577396,1739176247073,-500.0,0.00012328,2]
[352577397,1739176247084,-500.0,0.00012328,2]
[352577398,1739176247094,-3425.53,0.00012328,2]
[352577399,1739176247103,-500.0,0.00012328,2]
[352577400,1739176247114,-1859.98,0.00012328,2]
[352577401,1739176247124,-500.0,0.00012328,2]
[352577402,1739176247135,-522.25,0.00012328,2]
[352577403,1739176247145,-500.0,0.00012328,2]
[352577404,1739176247158,-1011.61,0.00012328,2]
[352577405,1739176247168,-18089.75,0.00012328,2]
[352577406,1739176247179,-500.0,0.00012328,2]
[352577407,1739176247188,-647.77,0.00012328,2]
[352577408,1739176247199,-801.62,0.00012328,2]
[352577409,1739176247209,-1371.26,0.00012328,2]
[352577410,1739176247220,-500.0,0.00012328,2]
[352577411,1739176247232,-3891.79,0.00012328,2]
[352577412,1739176247241,-500.0,0.00012328,2]
[352577413,1739176247251,-444.92117771,0.00012328,2]
[352577414,1739176247262,-596.73,0.00012328,2]
[352577415,1739176247272,-1383.93,0.00012328,2]
[352577416,1739176247282,-679.91,0.00012328,2]
[352577417,1739176247292,-564.98,0.00012328,2]
[352577418,1739176247304,-500.0,0.00012328,2]
[352577419,1739176247315,-646.42,0.00012328,2]
[352577420,1739176247327,-1228.06,0.00012328,2]
[352577421,1739176247337,-500.0,0.00012328,2]
[352577422,1739176247349,-578.5,0.00012328,2]
[352577423,1739176247359,-642.43,0.00012328,2]
[352577424,1739176247370,-500.0,0.00012328,2]
[352577425,1739176247380,-1441.94,0.00012328,2]
[352577426,1739176247391,-1123.55,0.00012328,2]
[352577427,1739176247526,-7773.71,0.00012328,2]
[352577428,1739176247534,-500.0,0.00012328,2]
[352577429,1739176247542,-758.06,0.00012328,2]
[352577430,1739176247551,-1593.69,0.00012328,2]
[352577431,1739176247559,-500.0,0.00012328,2]
[352577432,1739176247568,-846.15,0.00012328,2]
[352577433,1739176247576,-500.0,0.00012328,2]
[352577434,1739176247585,-1596.76,0.00012328,2]
[352577435,1739176247595,-2715.66,0.00012328,2]
[352577436,1739176247606,-1000.0,0.00012422,2]
[352577437,1739176247616,-500.0,0.00012465,2]
[352577438,1739176247625,-76.09432978,0.00012465,2]
[352577439,1739176247772,-423.90567022,0.00012465,2]
[352577440,1739176247782,-524.71,0.00012465,2]
[352577441,1739176247792,-500.0,0.00012465,2]
[352577442,1739176247803,-500.0,0.00012465,2]
[352577443,1739176247813,-844.45,0.00012465,2]
[352577444,1739176247823,-500.0,0.00012465,2]
[352577445,1739176247833,-500.0,0.00012465,2]
[352577446,1739176247843,-3425.53,0.00012465,2]
[352577447,1739176247853,-500.0,0.00012465,2]
[352577448,1739176247863,-1859.98,0.00012465,2]
[352577449,1739176247873,-500.0,0.00012465,2]
[352577450,1739176247882,-522.25,0.00012465,2]
[352577451,1739176247892,-500.0,0.00012465,2]
[352577452,1739176247902,-1011.61,0.00012465,2]
[352577453,1739176247913,-18089.75,0.00012465,2]
[352577454,1739176247923,-500.0,0.00012465,2]
[352577455,1739176247932,-647.77,0.00012465,2]
[352577456,1739176247942,-801.62,0.00012465,2]
[352577457,1739176247953,-1371.26,0.00012465,2]
[352577458,1739176247963,-500.0,0.00012465,2]
[352577459,1739176247973,-3891.79,0.00012465,2]
[352577460,1739176247983,-500.0,0.00012465,2]
[352577461,1739176247993,-596.73,0.00012465,2]
[352577462,1739176248004,-1383.93,0.00012465,2]
[352577463,1739176248015,-679.91,0.00012465,2]
[352577464,1739176248025,-564.98,0.00012465,2]
[352577465,1739176248035,-500.0,0.00012465,2]
[352577466,1739176248047,-646.42,0.00012465,2]
[352577467,1739176248059,-1228.06,0.00012465,2]
[352577468,1739176248071,-500.0,0.00012465,2]
[352577469,1739176248081,-578.5,0.00012465,2]
[352577470,1739176248092,-642.43,0.00012465,2]
[352577471,1739176248104,-500.0,0.00012465,2]
[352577472,1739176248116,-1441.94,0.00012465,2]
[352577473,1739176248127,-1123.55,0.00012465,2]
[352577474,1739176248139,-7773.71,0.00012465,2]
[352577475,1739176248151,-500.0,0.00012465,2]
[352577476,1739176248166,-758.06,0.00012465,2]
[352577477,1739176248177,-1593.69,0.00012465,2]
[352577478,1739176248188,-500.0,0.00012465,2]
[352577479,1739176248201,-846.15,0.00012465,2]
[352577480,1739176248211,-500.0,0.00012465,2]
[352577481,1739176248223,-1596.76,0.00012465,2]
[352577482,1739176248235,-2715.66,0.00012465,2]
[352577483,1739176248246,-6696.07525689,0.000125,2]
[352577484,1739176248257,-151.0,0.000126,2]
[352577485,1739176248268,-500.0,0.00012602,2]
[352577486,1739176248278,-500.0,0.00012602,2]
[352577487,1739176248289,-524.71,0.00012602,2]
[352577488,1739176248300,-500.0,0.00012602,2]
[352577489,1739176248311,-500.0,0.00012602,2]
[352577490,1739176248322,-844.45,0.00012602,2]
[352577491,1739176248333,-500.0,0.00012602,2]
[352577492,1739176248344,-500.0,0.00012602,2]
[352577493,1739176248355,-3425.53,0.00012602,2]
[352577494,1739176248365,-500.0,0.00012602,2]
[352577495,1739176248376,-1859.98,0.00012602,2]
[352577496,1739176248387,-500.0,0.00012602,2]
[352577497,1739176248397,-522.25,0.00012602,2]
[352577498,1739176248408,-500.0,0.00012602,2]
[352577499,1739176248419,-1011.61,0.00012602,2]
[352577500,1739176248429,-18089.75,0.00012602,2]
[352577501,1739176248439,-500.0,0.00012602,2]
[352577502,1739176248448,-647.77,0.00012602,2]
[352577503,1739176248458,-801.62,0.00012602,2]
[352577504,1739176248468,-1371.26,0.00012602,2]
[352577505,1739176248479,-500.0,0.00012602,2]
[352577506,1739176248488,-3891.79,0.00012602,2]
[352577507,1739176248499,-500.0,0.00012602,2]
[352577508,1739176248509,-596.73,0.00012602,2]
[352577509,1739176248520,-1383.93,0.00012602,2]
[352577510,1739176248530,-679.91,0.00012602,2]
[352577511,1739176248541,-564.98,0.00012602,2]
[352577512,1739176248551,-500.0,0.00012602,2]
[352577513,1739176248562,-646.42,0.00012602,2]
[352577514,1739176248572,-1228.06,0.00012602,2]
[352577515,1739176248582,-500.0,0.00012602,2]
[352577516,1739176248592,-578.5,0.00012602,2]
[352577517,1739176248602,-642.43,0.00012602,2]
[352577518,1739176248611,-500.0,0.00012602,2]
[352577519,1739176248625,-1441.94,0.00012602,2]
[352577520,1739176248635,-1123.55,0.00012602,2]
[352577521,1739176248645,-7773.71,0.00012602,2]
[352577522,1739176248655,-500.0,0.00012602,2]
[352577523,1739176248665,-758.06,0.00012602,2]
[352577524,1739176248676,-1593.69,0.00012602,2]
[352577525,1739176248686,-500.0,0.00012602,2]
[352577526,1739176248696,-846.15,0.00012602,2]
[352577527,1739176248707,-406.56,0.00012602,2]
[352577528,1739176248718,-1596.76,0.00012602,2]
[352577529,1739176248729,-2715.66,0.00012602,2]
[352577530,1739176248740,-188.2255022,0.00012639,2]
[352577531,1739176248750,-1000.0,0.00012691,2]
[352577532,1739176248760,-1000.56880759,0.00012691,2]
[352577533,1739176248770,-1000.0,0.00012696,2]
[352577534,1739176248780,-360.60598572,0.00012696,2]
[352577535,1739176248791,-911.6878396,0.00012696,2]
[352577536,1739176248801,-500.0,0.00012696,2]
[352577537,1739176248812,-500.0,0.00012739,2]
[352577538,1739176248824,-500.0,0.00012739,2]
[352577539,1739176248834,-524.71,0.00012739,2]
[352577540,1739176248844,-500.0,0.00012739,2]
[352577541,1739176248854,-500.0,0.00012739,2]
[352577542,1739176248865,-844.45,0.00012739,2]
[352577543,1739176248875,-500.0,0.00012739,2]
[352577544,1739176248886,-508.52,0.00012739,2]
[352577545,1739176248897,-3425.53,0.00012739,2]
[352577546,1739176248908,-500.0,0.00012739,2]
[352577547,1739176248918,-1859.98,0.00012739,2]
[352577548,1739176248929,-500.0,0.00012739,2]
[352577549,1739176248939,-522.25,0.00012739,2]
[352577550,1739176248949,-500.0,0.00012739,2]
[352577551,1739176248960,-1011.61,0.00012739,2]
[352577552,1739176248970,-18089.75,0.00012739,2]
[352577553,1739176248980,-500.0,0.00012739,2]
[352577554,1739176248990,-647.77,0.00012739,2]
[352577555,1739176249001,-801.62,0.00012739,2]
[352577556,1739176249011,-1371.26,0.00012739,2]
[352577557,1739176249021,-500.0,0.00012739,2]
[352577558,1739176249033,-3891.79,0.00012739,2]
[352577559,1739176249043,-500.0,0.00012739,2]
[352577560,1739176249053,-596.73,0.00012739,2]
[352577561,1739176249064,-1383.93,0.00012739,2]
[352577562,1739176249074,-679.91,0.00012739,2]
[352577563,1739176249084,-564.98,0.00012739,2]
[352577564,1739176249095,-500.0,0.00012739,2]
[352577565,1739176249106,-646.42,0.00012739,2]
[352577566,1739176249116,-1228.06,0.00012739,2]
[352577567,1739176249127,-500.0,0.00012739,2]
[352577568,1739176249137,-578.5,0.00012739,2]
[352577569,1739176249146,-642.43,0.00012739,2]
[352577570,1739176249160,-500.0,0.00012739,2]
[352577571,1739176249170,-1441.94,0.00012739,2]
[352577572,1739176249179,-1123.55,0.00012739,2]
[352577573,1739176249189,-7773.71,0.00012739,2]
[352577574,1739176249201,-500.0,0.00012739,2]
[352577575,1739176249211,-758.06,0.00012739,2]
[352577576,1739176249221,-1593.69,0.00012739,2]
[352577577,1739176249232,-500.0,0.00012739,2]
[352577578,1739176249243,-846.15,0.00012739,2]
[352577579,1739176249253,-1596.76,0.00012739,2]
[352577580,1739176249263,-2715.66,0.00012739,2]
[352577581,1739176249273,-151.0,0.000128,2]
[352577582,1739176249282,-13267.29691025,0.0001284,2]
[352577583,1739176249291,-500.0,0.00012876,2]
[352577584,1739176249301,-500.0,0.00012876,2]
[352577585,1739176249311,-524.71,0.00012876,2]
[352577586,1739176249321,-500.0,0.00012876,2]
[352577587,1739176249330,-437.44,0.00012876,2]
[352577588,1739176249339,-844.45,0.00012876,2]
[352577589,1739176249349,-500.0,0.00012876,2]
[352577590,1739176249359,-3425.53,0.00012876,2]
[352577591,1739176249368,-500.0,0.00012876,2]
[352577592,1739176249378,-1859.98,0.00012876,2]
[352577593,1739176249388,-480.17,0.00012876,2]
[352577594,1739176249397,-522.25,0.00012876,2]
[352577595,1739176249407,-500.0,0.00012876,2]
[352577596,1739176249416,-1011.61,0.00012876,2]
[352577597,1739176249425,-18089.75,0.00012876,2]
[352577598,1739176249435,-500.0,0.00012876,2]
[352577599,1739176249444,-647.77,0.00012876,2]
[352577600,1739176249454,-801.62,0.00012876,2]
[352577601,1739176249464,-1371.26,0.00012876,2]
[352577602,1739176249473,-597.33,0.00012876,2]
[352577603,1739176249483,-3891.79,0.00012876,2]
[352577604,1739176249493,-500.0,0.00012876,2]
[352577605,1739176249502,-596.73,0.00012876,2]
[352577606,1739176249511,-1383.93,0.00012876,2]
[352577607,1739176249521,-679.91,0.00012876,2]
[352577608,1739176249530,-564.98,0.00012876,2]
[352577609,1739176249539,-500.0,0.00012876,2]
[352577610,1739176249549,-646.42,0.00012876,2]
[352577611,1739176249559,-1228.06,0.00012876,2]
[352577612,1739176249569,-500.0,0.00012876,2]
[352577613,1739176249578,-578.5,0.00012876,2]
[352577614,1739176249588,-642.43,0.00012876,2]
[352577615,1739176249598,-500.0,0.00012876,2]
[352577616,1739176249607,-1441.94,0.00012876,2]
[352577617,1739176249707,-1123.55,0.00012876,2]
[352577618,1739176249717,-7773.71,0.00012876,2]
[352577619,1739176249726,-500.0,0.00012876,2]
[352577620,1739176249735,-758.06,0.00012876,2]
[352577621,1739176249744,-1593.69,0.00012876,2]
[352577622,1739176249753,-242.92,0.00012876,2]
[352577623,1739176249762,-846.15,0.00012876,2]
[352577624,1739176249772,-1596.76,0.00012876,2]
[352577625,1739176249781,-2715.66,0.00012876,2]
[352577626,1739176249790,-590.42408751,0.000129,2]
[352577627,1739176249799,-590.4240875,0.000129,2]
[352577628,1739176249809,-590.4240875,0.000129,2]
[352577629,1739176249818,-179.85235899,0.00012913,2]
[352577630,1739176249828,-184710.95791744,0.00013,2]
[352577631,1739176249837,-500.0,0.00013013,2]
[352577632,1739176249847,-634.93712056,0.00013013,2]
[352577633,1739176249856,-524.71,0.00013013,2]
[352577634,1739176249865,-500.0,0.00013013,2]
[352577635,1739176249875,-844.45,0.00013013,2]
[352577636,1739176249884,-500.0,0.00013013,2]
[352577637,1739176249895,-3425.53,0.00013013,2]
[352577638,1739176249904,-500.0,0.00013013,2]
[352577639,1739176249918,-1859.98,0.00013013,2]
[352577640,1739176249927,-522.25,0.00013013,2]
[352577641,1739176249937,-500.0,0.00013013,2]
[352577642,1739176249946,-1011.61,0.00013013,2]
[352577643,1739176249956,-18089.75,0.00013013,2]
[352577644,1739176249965,-500.0,0.00013013,2]
[352577645,1739176249980,-647.77,0.00013013,2]
[352577646,1739176249990,-801.62,0.00013013,2]
[352577647,1739176250000,-1371.26,0.00013013,2]
[352577648,1739176250010,-3891.79,0.00013013,2]
[352577649,1739176250019,-500.0,0.00013013,2]
[352577650,1739176250028,-596.73,0.00013013,2]
[352577651,1739176250038,-1383.93,0.00013013,2]
[352577652,1739176250047,-679.91,0.00013013,2]
[352577653,1739176250058,-564.98,0.00013013,2]
[352577654,1739176250067,-500.0,0.00013013,2]
[352577655,1739176250077,-646.42,0.00013013,2]
[352577656,1739176250086,-1228.06,0.00013013,2]
[352577657,1739176250096,-500.0,0.00013013,2]
[352577658,1739176250106,-578.5,0.00013013,2]
[352577659,1739176250115,-642.43,0.00013013,2]
[352577660,1739176250125,-547.52,0.00013013,2]
[352577661,1739176250135,-1441.94,0.00013013,2]
[352577662,1739176250144,-1123.55,0.00013013,2]
[352577663,1739176250155,-7773.71,0.00013013,2]
[352577664,1739176250167,-500.0,0.00013013,2]
[352577665,1739176250176,-758.06,0.00013013,2]
[352577666,1739176250185,-1593.69,0.00013013,2]
[352577667,1739176250195,-846.15,0.00013013,2]
[352577668,1739176250206,-1596.76,0.00013013,2]
[352577669,1739176250215,-2715.66,0.00013013,2]
[352577670,1739176250225,-372.43024915,0.00013044,2]
[352577671,1739176250236,-500.0,0.00013112,2]
[352577672,1739176250245,-500.0,0.0001315,2]
[352577673,1739176250255,-524.71,0.0001315,2]
[352577674,1739176250264,-500.0,0.0001315,2]
[352577675,1739176250273,-844.45,0.0001315,2]
[352577676,1739176250282,-500.0,0.0001315,2]
[352577677,1739176250291,-3425.53,0.0001315,2]
[352577678,1739176250301,-500.0,0.0001315,2]
[352577679,1739176250311,-1859.98,0.0001315,2]
[352577680,1739176250321,-522.25,0.0001315,2]
[352577681,1739176250331,-500.0,0.0001315,2]
[352577682,1739176250340,-1011.61,0.0001315,2]
[352577683,1739176250350,-18089.75,0.0001315,2]
[352577684,1739176250360,-500.0,0.0001315,2]
[352577685,1739176250371,-647.77,0.0001315,2]
[352577686,1739176250380,-801.62,0.0001315,2]
[352577687,1739176250390,-1371.26,0.0001315,2]
[352577688,1739176250400,-3891.79,0.0001315,2]
[352577689,1739176250409,-500.0,0.0001315,2]
[352577690,1739176250418,-596.73,0.0001315,2]
[352577691,1739176250427,-1383.93,0.0001315,2]
[352577692,1739176250436,-679.91,0.0001315,2]
[352577693,1739176250445,-564.98,0.0001315,2]
[352577694,1739176250454,-500.0,0.0001315,2]
[352577695,1739176250464,-646.42,0.0001315,2]
[352577696,1739176250473,-1228.06,0.0001315,2]
[352577697,1739176250483,-500.0,0.0001315,2]
[352577698,1739176250492,-578.5,0.0001315,2]
[352577699,1739176250501,-642.43,0.0001315,2]
[352577700,1739176250511,-1441.94,0.0001315,2]
[352577701,1739176250520,-1123.55,0.0001315,2]
[352577702,1739176250529,-7773.71,0.0001315,2]
[352577703,1739176250539,-500.0,0.0001315,2]
[352577704,1739176250548,-758.06,0.0001315,2]
[352577705,1739176250558,-1593.69,0.0001315,2]
[352577706,1739176250567,-846.15,0.0001315,2]
[352577707,1739176250577,-1596.76,0.0001315,2]
[352577708,1739176250586,-2715.66,0.0001315,2]
[352577709,1739176250596,-500.0,0.00013287,2]
[352577710,1739176250605,-524.71,0.00013287,2]
[352577711,1739176250614,-230.09,0.00013287,2]
[352577712,1739176250624,-844.45,0.00013287,2]
[352577713,1739176250634,-597.76000001,0.00013287,2]
[352577714,1739176250643,-3425.53,0.00013287,2]
[352577715,1739176250653,-500.0,0.00013287,2]
[352577716,1739176250663,-1859.98,0.00013287,2]
[352577717,1739176250672,-522.25,0.00013287,2]
[352577718,1739176250682,-500.0,0.00013287,2]
[352577719,1739176250691,-1011.61,0.00013287,2]
[352577720,1739176250700,-18089.75,0.00013287,2]
[352577721,1739176250709,-500.0,0.00013287,2]
[352577722,1739176250719,-647.77,0.00013287,2]
[352577723,1739176250728,-801.62,0.00013287,2]
[352577724,1739176250737,-1371.26,0.00013287,2]
[352577725,1739176250747,-3891.79,0.00013287,2]
[352577726,1739176250757,-442.96,0.00013287,2]
[352577727,1739176250766,-596.73,0.00013287,2]
[352577728,1739176250776,-143.71562669,0.00013287,2]
[352577729,1739176250791,-1240.21437331,0.00013287,2]
[352577730,1739176250802,-679.91,0.00013287,2]
[352577731,1739176250812,-564.98,0.00013287,2]
[352577732,1739176250821,-500.0,0.00013287,2]
[352577733,1739176250830,-646.42,0.00013287,2]
[352577734,1739176250840,-1228.06,0.00013287,2]
[352577735,1739176250849,-500.0,0.00013287,2]
[352577736,1739176250859,-578.5,0.00013287,2]
[352577737,1739176250868,-642.43,0.00013287,2]
[352577738,1739176250878,-1441.94,0.00013287,2]
[352577739,1739176250887,-1123.55,0.00013287,2]
[352577740,1739176250896,-7773.71,0.00013287,2]
[352577741,1739176250906,-500.0,0.00013287,2]
[352577742,1739176250916,-758.06,0.00013287,2]
[352577743,1739176250926,-1593.69,0.00013287,2]
[352577744,1739176250935,-846.15,0.00013287,2]
[352577745,1739176250945,-1596.76,0.00013287,2]
[352577746,1739176250955,-2715.66,0.00013287,2]
[352577747,1739176250964,-179.85235897,0.00013379,2]
[352577748,1739176250973,-500.0,0.00013385,2]
[352577749,1739176250982,-166.58,0.00013424,2]
[352577750,1739176250991,-524.71,0.00013424,2]
[352577751,1739176251001,-844.45,0.00013424,2]
[352577752,1739176251010,-3425.53,0.00013424,2]
[352577753,1739176251020,-500.0,0.00013424,2]
[352577754,1739176251029,-1859.98,0.00013424,2]
[352577755,1739176251039,-522.25,0.00013424,2]
[352577756,1739176251048,-500.0,0.00013424,2]
[352577757,1739176251059,-1011.61,0.00013424,2]
[352577758,1739176251068,-18089.75,0.00013424,2]
[352577759,1739176251078,-500.0,0.00013424,2]
[352577760,1739176251088,-647.77,0.00013424,2]
[352577761,1739176251098,-801.62,0.00013424,2]
[352577762,1739176251108,-1371.26,0.00013424,2]
[352577763,1739176251118,-3891.79,0.00013424,2]
[352577764,1739176251128,-596.73,0.00013424,2]
[352577765,1739176251139,-1383.93,0.00013424,2]
[352577766,1739176251149,-679.91,0.00013424,2]
[352577767,1739176251161,-564.98,0.00013424,2]
[352577768,1739176251171,-500.0,0.00013424,2]
[352577769,1739176251181,-646.42,0.00013424,2]
[352577770,1739176251191,-1228.06,0.00013424,2]
[352577771,1739176251202,-500.0,0.00013424,2]
[352577772,1739176251211,-578.5,0.00013424,2]
[352577773,1739176251221,-642.43,0.00013424,2]
[352577774,1739176251232,-1441.94,0.00013424,2]
[352577775,1739176251242,-1123.55,0.00013424,2]
[352577776,1739176251252,-7773.71,0.00013424,2]
[352577777,1739176251262,-500.0,0.00013424,2]
[352577778,1739176251271,-758.06,0.00013424,2]
[352577779,1739176251280,-1593.69,0.00013424,2]
[352577780,1739176251290,-846.15,0.00013424,2]
[352577781,1739176251300,-1596.76,0.00013424,2]
[352577782,1739176251311,-2715.66,0.00013424,2]
[352577783,1739176251321,-5619.26047226,0.00013489,2]
[352577784,1739176251349,-1408.51,0.00012054,2]
[352577785,1739176251359,-37051.88480169,0.00013489,2]
[352577786,1739176251368,-590.4240875,0.00013534,2]
[352577787,1739176251378,-151.01526129,0.00013561,2]
[352577788,1739176251387,-524.71,0.00013561,2]
[352577789,1739176251396,-844.45,0.00013561,2]
[352577790,1739176251406,-3425.53,0.00013561,2]
[352577791,1739176251416,-275.08,0.00013561,2]
[352577792,1739176251425,-1859.98,0.00013561,2]
[352577793,1739176251435,-522.25,0.00013561,2]
[352577794,1739176251445,-500.0,0.00013561,2]
[352577795,1739176251454,-1011.61,0.00013561,2]
[352577796,1739176251463,-18089.75,0.00013561,2]
[352577797,1739176251473,-591.4,0.00013561,2]